[Event "*** Titled Tuesday Blitz"]
[Site "Chess.com"]
[Date "2021.03.09"]
[Round "4"]
[White "Chigorinetz"]
[Black "mikolka1985"]
[Result "0-1"]
[WhiteElo "2505"]
[BlackElo "2688"]
[TimeControl "180+1"]
[EndTime "10:42:37 PST"]
[Termination "mikolka1985 won on time"]

1. e4 {[%clk 0:03:00.9]} 1... e5 {[%clk 0:02:55.3]} 2. Bc4 {[%clk 0:03:00.1]}
2... Nf6 {[%clk 0:02:40.5]} 3. d3 {[%clk 0:03:00.1]} 3... Nc6 {[%clk 0:02:35.4]}
4. Nc3 {[%clk 0:02:59.5]} 4... Na5 {[%clk 0:02:34.5]} 5. Qf3 {[%clk 0:02:58.7]}
5... Bc5 {[%clk 0:02:31.8]} 6. Nge2 {[%clk 0:02:57.8]} 6... Nxc4 {[%clk
0:02:30.5]} 7. dxc4 {[%clk 0:02:57.3]} 7... h6 {[%clk 0:02:25.7]} 8. h3 {[%clk
0:02:56.9]} 8... d6 {[%clk 0:02:25.5]} 9. b3 {[%clk 0:02:56.8]} 9... O-O {[%clk
0:02:24.3]} 10. a4 {[%clk 0:02:56.3]} 10... a6 {[%clk 0:02:23.2]} 11. Be3 {[%clk
0:02:52.7]} 11... Bxe3 {[%clk 0:02:20.3]} 12. Qxe3 {[%clk 0:02:52.8]} 12... Nh7
{[%clk 0:02:19.7]} 13. g4 {[%clk 0:02:45.8]} 13... Ng5 {[%clk 0:02:12.4]} 14.
O-O-O {[%clk 0:02:39.1]} 14... Ne6 {[%clk 0:02:10.7]} 15. h4 {[%clk 0:02:38]}
15... Bd7 {[%clk 0:02:05.4]} 16. a5 {[%clk 0:02:32]} 16... Rb8 {[%clk
0:01:24.6]} 17. Nd5 {[%clk 0:02:29.2]} 17... Bc6 {[%clk 0:01:21.2]} 18. Rdg1
{[%clk 0:02:16]} 18... b5 {[%clk 0:01:13.4]} 19. axb6 {[%clk 0:02:15]} 19...
Bxd5 {[%clk 0:01:10.4]} 20. exd5 {[%clk 0:02:07.3]} 20... Nc5 {[%clk 0:01:09.8]}
21. g5 {[%clk 0:02:04.2]} 21... h5 {[%clk 0:01:08.2]} 22. g6 {[%clk 0:02:01.1]}
22... cxb6 {[%clk 0:01:03.3]} 23. gxf7+ {[%clk 0:01:47.2]} 23... Rxf7 {[%clk
0:01:02.8]} 24. Rg6 {[%clk 0:01:47]} 24... b5 {[%clk 0:00:57.9]} 25. cxb5 {[%clk
0:01:38.7]} 25... axb5 {[%clk 0:00:57.5]} 26. Rhg1 {[%clk 0:01:36]} 26... Ra8
{[%clk 0:00:55.9]} 27. b4 {[%clk 0:00:57.8]} 27... Ra1+ {[%clk 0:00:53.4]} 28.
Kd2 {[%clk 0:00:56.6]} 28... Rxg1 {[%clk 0:00:53]} 29. Nxg1 {[%clk 0:00:43.1]}
29... Na6 {[%clk 0:00:45.6]} 30. c3 {[%clk 0:00:28.6]} 30... Nc7 {[%clk
0:00:44.9]} 31. Ne2 {[%clk 0:00:24.3]} 31... Nxd5 {[%clk 0:00:43]} 32. Qd3
{[%clk 0:00:24.4]} 32... Nf6 {[%clk 0:00:40.2]} 33. Ng3 {[%clk 0:00:23.3]} 33...
d5 {[%clk 0:00:33.3]} 34. Qxb5 {[%clk 0:00:22.5]} 34... Qc8 {[%clk 0:00:25.3]}
35. Qd3 {[%clk 0:00:16.7]} 35... d4 {[%clk 0:00:24.4]} 36. c4 {[%clk 0:00:16.3]}
36... Qb8 {[%clk 0:00:22.2]} 37. b5 {[%clk 0:00:12.5]} 37... Ra7 {[%clk
0:00:21]} 38. Ke2 {[%clk 0:00:11.9]} 38... Qe8 {[%clk 0:00:18.4]} 39. Kf1 {[%clk
0:00:08]} 39... Ra1+ {[%clk 0:00:17]} 40. Kg2 {[%clk 0:00:07.6]} 40... Qa8+
{[%clk 0:00:17.6]} 41. f3 {[%clk 0:00:06.7]} 41... Ra2+ {[%clk 0:00:14.3]} 42.
Kh3 {[%clk 0:00:05.2]} 42... Ng4 {[%clk 0:00:13.7]} 43. Rxg4 {[%clk 0:00:03.2]}
43... hxg4+ {[%clk 0:00:13]} 44. Kxg4 {[%clk 0:00:04.1]} 44... Qc8+ {[%clk
0:00:12.4]} 45. Qf5 {[%clk 0:00:02.9]} 45... Qxc4 {[%clk 0:00:09.1]} 46. b6
{[%clk 0:00:01]} 46... Rb2 {[%clk 0:00:08]} 47. Ne4 {[%clk 0:00:01.9]} 47...
Rg2+ {[%clk 0:00:06.5]} 48. Kh3 {[%clk 0:00:01.7]} 48... Rb2 {[%clk 0:00:05.6]}
49. Nf6+ {[%clk 0:00:01.3]} 49... gxf6 {[%clk 0:00:04.8]} 0-1

[Event "*** Titled Tuesday Blitz"]
[Site "Chess.com"]
[Date "2021.03.09"]
[Round "4"]
[White "Lion-Al-Messi"]
[Black "rquery98"]
[Result "0-1"]
[WhiteElo "2484"]
[BlackElo "2639"]
[TimeControl "180+1"]
[EndTime "10:42:37 PST"]
[Termination "rquery98 won on time"]

1. e4 {[%clk 0:03:00.9]} 1... e5 {[%clk 0:03:00.4]} 2. Nf3 {[%clk 0:03:00.2]}
2... Nc6 {[%clk 0:03:00.9]} 3. Bb5 {[%clk 0:03:00.9]} 3... a6 {[%clk 0:03:00.6]}
4. Ba4 {[%clk 0:03:01.5]} 4... Nge7 {[%clk 0:02:59.9]} 5. c3 {[%clk 0:03:00.8]}
5... g6 {[%clk 0:02:59.2]} 6. d4 {[%clk 0:03:00.9]} 6... exd4 {[%clk 0:03:00.1]}
7. cxd4 {[%clk 0:03:01]} 7... Bg7 {[%clk 0:02:58.4]} 8. O-O {[%clk 0:03:01.1]}
8... b5 {[%clk 0:02:56.1]} 9. Bb3 {[%clk 0:02:57.6]} 9... O-O {[%clk 0:02:49.3]}
10. Nc3 {[%clk 0:02:44.5]} 10... d6 {[%clk 0:02:49.4]} 11. Bg5 {[%clk
0:02:43.4]} 11... h6 {[%clk 0:02:47.4]} 12. Bh4 {[%clk 0:02:43.4]} 12... Na5
{[%clk 0:02:45.4]} 13. Bc2 {[%clk 0:02:39.5]} 13... g5 {[%clk 0:02:40]} 14. Bg3
{[%clk 0:02:35.7]} 14... Bb7 {[%clk 0:02:27.9]} 15. Re1 {[%clk 0:02:29.3]} 15...
f5 {[%clk 0:02:17.7]} 16. exf5 {[%clk 0:02:24.9]} 16... Nxf5 {[%clk 0:02:18.6]}
17. Qe2 {[%clk 0:02:20.7]} 17... Kh8 {[%clk 0:02:11.4]} 18. d5 {[%clk
0:02:10.4]} 18... Nc4 {[%clk 0:02:05.5]} 19. Qe6 {[%clk 0:02:02.1]} 19... Bc8
{[%clk 0:01:54.5]} 20. Qe4 {[%clk 0:01:59.7]} 20... Nxb2 {[%clk 0:01:54.4]} 21.
Nd1 {[%clk 0:01:19.2]} 21... Nd3 {[%clk 0:01:54.2]} 22. Qxd3 {[%clk 0:01:08.4]}
22... Bxa1 {[%clk 0:01:54.6]} 23. Ne3 {[%clk 0:01:08.7]} 23... Bg7 {[%clk
0:01:43.2]} 24. h4 {[%clk 0:00:51.1]} 24... Bd7 {[%clk 0:01:21.5]} 25. hxg5
{[%clk 0:00:51.2]} 25... hxg5 {[%clk 0:01:22.4]} 26. Bh2 {[%clk 0:00:51.6]}
26... Qf6 {[%clk 0:01:15.5]} 27. g4 {[%clk 0:00:50.7]} 27... Rae8 {[%clk
0:01:09.4]} 28. gxf5 {[%clk 0:00:49.5]} 28... g4 {[%clk 0:01:04.1]} 29. Nxg4
{[%clk 0:00:49]} 29... Rxe1+ {[%clk 0:01:00.2]} 30. Nxe1 {[%clk 0:00:49.9]}
30... Qc3 {[%clk 0:01:00.6]} 31. Qxc3 {[%clk 0:00:41.9]} 31... Bxc3 {[%clk
0:01:01.5]} 32. Nf3 {[%clk 0:00:31.8]} 32... Bxf5 {[%clk 0:01:00.9]} 33. Bxf5
{[%clk 0:00:22.8]} 33... Rxf5 {[%clk 0:01:01.8]} 34. Kg2 {[%clk 0:00:22.7]}
34... Rxd5 {[%clk 0:01:02.1]} 35. Ne3 {[%clk 0:00:22.8]} 35... Rc5 {[%clk
0:00:58.5]} 36. Nh4 {[%clk 0:00:19.6]} 36... b4 {[%clk 0:00:52.5]} 37. f4 {[%clk
0:00:18]} 37... a5 {[%clk 0:00:50.4]} 38. f5 {[%clk 0:00:17.8]} 38... a4 {[%clk
0:00:48.8]} 39. Ng6+ {[%clk 0:00:14.9]} 39... Kg7 {[%clk 0:00:47.4]} 40. Nf4
{[%clk 0:00:14.8]} 40... Kf7 {[%clk 0:00:41.8]} 41. Ne6 {[%clk 0:00:14.8]} 41...
Rb5 {[%clk 0:00:37.2]} 42. Nxc7 {[%clk 0:00:14.4]} 42... Rb7 {[%clk 0:00:37.8]}
43. Ne6 {[%clk 0:00:13.6]} 43... b3 {[%clk 0:00:30.5]} 44. Nd8+ {[%clk
0:00:06.3]} 44... Ke8 {[%clk 0:00:24.6]} 45. Nxb7 {[%clk 0:00:05.4]} 45... b2
{[%clk 0:00:24.4]} 46. Nxd6+ {[%clk 0:00:04.8]} 46... Kd7 {[%clk 0:00:23.8]} 47.
Nd5 {[%clk 0:00:03.5]} 47... b1=Q {[%clk 0:00:21]} 48. Nxc3 {[%clk 0:00:03.6]}
48... Qc2+ {[%clk 0:00:21.4]} 49. Kh1 {[%clk 0:00:03.8]} 49... Qxc3 {[%clk
0:00:21.6]} 50. Kg1 {[%clk 0:00:01.8]} 50... Qc1+ {[%clk 0:00:21.7]} 51. Kg2
{[%clk 0:00:02.2]} 51... Qc2+ {[%clk 0:00:22.6]} 52. Kh3 {[%clk 0:00:02.1]}
52... Qxa2 {[%clk 0:00:23.5]} 53. Ne4 {[%clk 0:00:02.3]} 53... Qb3+ {[%clk
0:00:24.4]} 54. Kg4 {[%clk 0:00:02]} 54... Ke8 {[%clk 0:00:22.3]} 55. Kf4 {[%clk
0:00:02]} 55... a3 {[%clk 0:00:22]} 56. Nd6+ {[%clk 0:00:01.4]} 56... Kd7 {[%clk
0:00:21.5]} 57. Kg5 {[%clk 0:00:02.3]} 57... a2 {[%clk 0:00:20.7]} 58. Ne4
{[%clk 0:00:02.4]} 58... Qg8+ {[%clk 0:00:21.2]} 59. Kf4 {[%clk 0:00:02.3]}
59... a1=Q {[%clk 0:00:21.6]} 60. Nc5+ {[%clk 0:00:02.4]} 60... Kc6 {[%clk
0:00:21.5]} 61. Ne4 {[%clk 0:00:02.3]} 61... Qb8+ {[%clk 0:00:21]} 62. Kg4
{[%clk 0:00:01.9]} 62... Qxh2 {[%clk 0:00:21.9]} 0-1

[Event "*** Titled Tuesday Blitz"]
[Site "Chess.com"]
[Date "2021.03.09"]
[Round "4"]
[White "Romadk"]
[Black "Caracternin123"]
[Result "0-1"]
[WhiteElo "2357"]
[BlackElo "2579"]
[TimeControl "180+1"]
[EndTime "10:42:37 PST"]
[Termination "Caracternin123 won on time"]

1. d4 {[%clk 0:03:00.9]} 1... Nf6 {[%clk 0:03:00.1]} 2. Nf3 {[%clk 0:03:00.5]}
2... b6 {[%clk 0:03:00]} 3. g3 {[%clk 0:03:00]} 3... Bb7 {[%clk 0:02:59.8]} 4.
Bg2 {[%clk 0:03:00.6]} 4... c5 {[%clk 0:03:00.3]} 5. dxc5 {[%clk 0:02:54.7]}
5... bxc5 {[%clk 0:03:01.2]} 6. c4 {[%clk 0:02:54]} 6... g6 {[%clk 0:03:01.2]}
7. O-O {[%clk 0:02:53.7]} 7... Bg7 {[%clk 0:03:01.6]} 8. Nc3 {[%clk 0:02:54.6]}
8... O-O {[%clk 0:03:01.5]} 9. Qb3 {[%clk 0:02:48.7]} 9... Qb6 {[%clk
0:02:54.2]} 10. Rd1 {[%clk 0:02:46.1]} 10... d6 {[%clk 0:02:53]} 11. h3 {[%clk
0:02:36.8]} 11... Nc6 {[%clk 0:02:51.5]} 12. Be3 {[%clk 0:02:33.9]} 12... Na5
{[%clk 0:02:47.9]} 13. Qxb6 {[%clk 0:02:26.3]} 13... axb6 {[%clk 0:02:48.8]} 14.
Nd2 {[%clk 0:02:17.9]} 14... Bxg2 {[%clk 0:02:46.9]} 15. Kxg2 {[%clk 0:02:18.8]}
15... Nd7 {[%clk 0:02:46.7]} 16. Rdc1 {[%clk 0:02:07.6]} 16... Nc6 {[%clk
0:02:25.5]} 17. b3 {[%clk 0:01:54.1]} 17... Ra5 {[%clk 0:02:18.2]} 18. a4 {[%clk
0:01:48.4]} 18... Nb4 {[%clk 0:02:10.6]} 19. Rab1 {[%clk 0:01:45.8]} 19... Bxc3
{[%clk 0:02:07.2]} 20. Rxc3 {[%clk 0:01:46.7]} 20... d5 {[%clk 0:02:07.6]} 21.
cxd5 {[%clk 0:01:42.4]} 21... Nxd5 {[%clk 0:02:08.5]} 22. Rd3 {[%clk 0:01:42.4]}
22... Nxe3+ {[%clk 0:02:05.6]} 23. Rxe3 {[%clk 0:01:43.3]} 23... e6 {[%clk
0:01:59.2]} 24. Nc4 {[%clk 0:01:43.2]} 24... Ra7 {[%clk 0:01:58.2]} 25. Rd1
{[%clk 0:01:43.4]} 25... Rc8 {[%clk 0:01:54.7]} 26. Red3 {[%clk 0:01:41.6]}
26... Rcc7 {[%clk 0:01:55.2]} 27. Rd6 {[%clk 0:01:38.3]} 27... Rab7 {[%clk
0:01:53.9]} 28. Na3 {[%clk 0:01:37]} 28... Nf6 {[%clk 0:01:49.3]} 29. Nb5 {[%clk
0:01:36.8]} 29... Rd7 {[%clk 0:01:49.1]} 30. Kf3 {[%clk 0:01:30]} 30... Kf8
{[%clk 0:01:49.1]} 31. e4 {[%clk 0:01:22.6]} 31... Ke7 {[%clk 0:01:48.2]} 32.
Ke3 {[%clk 0:01:15.5]} 32... Ne8 {[%clk 0:01:19.9]} 33. R6d3 {[%clk 0:00:58.8]}
33... Rxd3+ {[%clk 0:01:06.7]} 34. Rxd3 {[%clk 0:00:59.7]} 34... Nc7 {[%clk
0:01:06]} 35. Nd6 {[%clk 0:00:37.1]} 35... Rb8 {[%clk 0:01:05.7]} 36. e5 {[%clk
0:00:21.2]} 36... Nd5+ {[%clk 0:01:05.4]} 37. Ke2 {[%clk 0:00:20.4]} 37... f5
{[%clk 0:00:57.7]} 38. f4 {[%clk 0:00:19.7]} 38... h6 {[%clk 0:00:56.1]} 39. Nb5
{[%clk 0:00:19.1]} 39... Rd8 {[%clk 0:00:55]} 40. Nd6 {[%clk 0:00:18.9]} 40...
Ra8 {[%clk 0:00:53.1]} 41. Kf3 {[%clk 0:00:18.2]} 41... g5 {[%clk 0:00:52.5]}
42. g4 {[%clk 0:00:17.5]} 42... Nxf4 {[%clk 0:00:50.6]} 43. Rd1 {[%clk
0:00:16.1]} 43... Nxh3 {[%clk 0:00:43.1]} 44. gxf5 {[%clk 0:00:15]} 44... exf5
{[%clk 0:00:44]} 45. Nxf5+ {[%clk 0:00:14.8]} 45... Ke6 {[%clk 0:00:44.6]} 46.
Nxh6 {[%clk 0:00:13.2]} 46... Rf8+ {[%clk 0:00:43]} 47. Kg3 {[%clk 0:00:11.8]}
47... Nf2 {[%clk 0:00:41.3]} 48. Rd6+ {[%clk 0:00:08.5]} 48... Kxe5 {[%clk
0:00:41.6]} 49. Rxb6 {[%clk 0:00:09.4]} 49... Ne4+ {[%clk 0:00:40.8]} 50. Kg4
{[%clk 0:00:08.4]} 50... Rf4+ {[%clk 0:00:41]} 51. Kh3 {[%clk 0:00:08.1]} 51...
Rh4+ {[%clk 0:00:40.8]} 52. Kg2 {[%clk 0:00:08.9]} 52... g4 {[%clk 0:00:32.2]}
53. Nf7+ {[%clk 0:00:07.4]} 53... Kf4 {[%clk 0:00:30.4]} 54. a5 {[%clk
0:00:06.9]} 54... g3 {[%clk 0:00:30.7]} 55. a6 {[%clk 0:00:05.9]} 55... Rh2+
{[%clk 0:00:31]} 56. Kg1 {[%clk 0:00:05.8]} 56... Ra2 {[%clk 0:00:20.5]} 57. Nh6
{[%clk 0:00:02.9]} 57... Ng5 {[%clk 0:00:19.2]} 58. Rf6+ {[%clk 0:00:01]} 58...
Ke4 {[%clk 0:00:19.7]} 0-1

[Event "*** Titled Tuesday Blitz"]
[Site "Chess.com"]
[Date "2021.03.09"]
[Round "4"]
[White "Mikhail_Golubev"]
[Black "ludogoretz"]
[Result "1-0"]
[WhiteElo "2580"]
[BlackElo "2359"]
[TimeControl "180+1"]
[EndTime "10:42:38 PST"]
[Termination "Mikhail_Golubev won by resignation"]

1. e4 {[%clk 0:03:00.9]} 1... c5 {[%clk 0:02:42.5]} 2. Nf3 {[%clk 0:03:00.2]}
2... Nc6 {[%clk 0:02:41.6]} 3. Nc3 {[%clk 0:02:59.1]} 3... Nf6 {[%clk
0:02:41.2]} 4. Bb5 {[%clk 0:02:57.8]} 4... Nd4 {[%clk 0:02:40]} 5. e5 {[%clk
0:02:57.6]} 5... Nxb5 {[%clk 0:02:37]} 6. Nxb5 {[%clk 0:02:57.2]} 6... Nd5
{[%clk 0:02:37]} 7. Ng5 {[%clk 0:02:56.5]} 7... d6 {[%clk 0:01:36.4]} 8. Qf3
{[%clk 0:02:32.2]} 8... Be6 {[%clk 0:01:35.3]} 9. Nxe6 {[%clk 0:02:10.4]} 9...
fxe6 {[%clk 0:01:36.2]} 10. exd6 {[%clk 0:02:09.5]} 10... exd6 {[%clk
0:01:36.6]} 11. c4 {[%clk 0:01:57.8]} 11... Nf6 {[%clk 0:01:13.8]} 12. Qxb7
{[%clk 0:01:51.5]} 12... Be7 {[%clk 0:01:13.2]} 13. Qxa8 {[%clk 0:01:41.8]}
13... Qxa8 {[%clk 0:01:11.4]} 14. Nc7+ {[%clk 0:01:41.7]} 14... Kd7 {[%clk
0:01:12]} 15. Nxa8 {[%clk 0:01:42.4]} 15... Rxa8 {[%clk 0:01:12.3]} 16. d3
{[%clk 0:01:36.7]} 16... Ng4 {[%clk 0:01:05.8]} 17. O-O {[%clk 0:01:30.4]} 17...
Bf6 {[%clk 0:01:05.6]} 18. Rb1 {[%clk 0:01:28.1]} 18... a5 {[%clk 0:01:04.5]}
19. h3 {[%clk 0:01:24.3]} 19... Nh6 {[%clk 0:01:04.2]} 20. Bxh6 {[%clk
0:01:22.3]} 20... gxh6 {[%clk 0:01:04]} 21. f4 {[%clk 0:01:15.2]} 21... h5
{[%clk 0:01:00.7]} 22. Rfe1 {[%clk 0:01:08.9]} 22... Bd4+ {[%clk 0:01:00.1]} 23.
Kh2 {[%clk 0:01:03.9]} 23... h4 {[%clk 0:01:00.5]} 24. Re2 {[%clk 0:01:02.8]}
24... Rg8 {[%clk 0:00:59.4]} 25. a3 {[%clk 0:00:57.5]} 25... Rg3 {[%clk
0:00:56.4]} 26. Rd1 {[%clk 0:00:53.2]} 26... e5 {[%clk 0:00:47.4]} 27. fxe5
{[%clk 0:00:47.7]} 27... Bxe5 {[%clk 0:00:47.6]} 28. Kh1 {[%clk 0:00:47.3]}
28... Rg5 {[%clk 0:00:39.8]} 29. b3 {[%clk 0:00:44.8]} 29... Rf5 {[%clk
0:00:34.6]} 30. Re4 {[%clk 0:00:40.7]} 30... Bg3 {[%clk 0:00:34.3]} 31. d4
{[%clk 0:00:40.6]} 31... cxd4 {[%clk 0:00:34.6]} 32. Rexd4 {[%clk 0:00:39.7]}
32... Kc6 {[%clk 0:00:34.8]} 33. b4 {[%clk 0:00:38.5]} 33... axb4 {[%clk
0:00:34.3]} 34. axb4 {[%clk 0:00:38.1]} 34... Rf2 {[%clk 0:00:33.7]} 35. R4d2
{[%clk 0:00:35.7]} 35... Rf4 {[%clk 0:00:32.9]} 36. Rc2 {[%clk 0:00:34.5]} 36...
Re4 {[%clk 0:00:30.7]} 37. Rb1 {[%clk 0:00:33.8]} 37... Rd4 {[%clk 0:00:27.5]}
38. Kg1 {[%clk 0:00:33.8]} 38... Re4 {[%clk 0:00:26.8]} 39. c5 {[%clk
0:00:26.4]} 39... dxc5 {[%clk 0:00:27]} 40. Rxc5+ {[%clk 0:00:25.7]} 40... Kb6
{[%clk 0:00:26.6]} 41. Rc2 {[%clk 0:00:25]} 41... Re6 {[%clk 0:00:23.2]} 42. b5
{[%clk 0:00:24.2]} 42... Re3 {[%clk 0:00:21.7]} 43. Rc6+ {[%clk 0:00:23.4]}
43... Kb7 {[%clk 0:00:22.3]} 44. Rh6 {[%clk 0:00:23.3]} 44... Re7 {[%clk
0:00:21.8]} 45. b6 {[%clk 0:00:22.8]} 45... Rf7 {[%clk 0:00:22.2]} 46. Re6
{[%clk 0:00:21.4]} 46... Bf2+ {[%clk 0:00:22.3]} 47. Kh1 {[%clk 0:00:20.6]}
47... Bg3 {[%clk 0:00:23.2]} 48. Re4 {[%clk 0:00:19.5]} 48... h5 {[%clk
0:00:22.8]} 49. Ra4 {[%clk 0:00:19.1]} 49... Rf2 {[%clk 0:00:22.5]} 50. Ra7+
{[%clk 0:00:17.1]} 50... Kb8 {[%clk 0:00:23.2]} 51. Rh7 {[%clk 0:00:17]} 51...
Rf8 {[%clk 0:00:22.7]} 52. b7 {[%clk 0:00:16.5]} 52... Bc7 {[%clk 0:00:22.2]}
53. Rd7 {[%clk 0:00:14.6]} 53... Rg8 {[%clk 0:00:20]} 54. Rd3 {[%clk 0:00:14]}
54... Bg3 {[%clk 0:00:19.8]} 55. Ra3 {[%clk 0:00:13.8]} 55... Kc7 {[%clk
0:00:19.8]} 56. b8=Q+ {[%clk 0:00:13.4]} 56... Rxb8 {[%clk 0:00:19.3]} 57. Rxb8
{[%clk 0:00:13.4]} 57... Kxb8 {[%clk 0:00:20.2]} 58. Ra5 {[%clk 0:00:13.3]}
58... Kc7 {[%clk 0:00:20.7]} 59. Rxh5 {[%clk 0:00:13.7]} 59... Kd6 {[%clk
0:00:21.3]} 60. Kg1 {[%clk 0:00:14]} 60... Ke6 {[%clk 0:00:21.2]} 61. Kf1 {[%clk
0:00:14.9]} 61... Kf6 {[%clk 0:00:21.8]} 62. Ke2 {[%clk 0:00:15.2]} 62... Kg6
{[%clk 0:00:22.5]} 63. Rb5 {[%clk 0:00:15.2]} 63... Kf6 {[%clk 0:00:22.8]} 64.
Kf3 {[%clk 0:00:15.7]} 64... Kg6 {[%clk 0:00:23.4]} 65. Kg4 {[%clk 0:00:16.2]}
65... Kf6 {[%clk 0:00:22.7]} 66. Rh5 {[%clk 0:00:16.8]} 66... Kg6 {[%clk
0:00:22.5]} 67. Rxh4 {[%clk 0:00:17.6]} 1-0

[Event "*** Titled Tuesday Blitz"]
[Site "Chess.com"]
[Date "2021.03.09"]
[Round "4"]
[White "lupta_robin"]
[Black "Oglob71"]
[Result "0-1"]
[WhiteElo "2582"]
[BlackElo "2400"]
[TimeControl "180+1"]
[EndTime "10:42:40 PST"]
[Termination "Oglob71 won by resignation"]

1. d4 {[%clk 0:03:00.9]} 1... Nf6 {[%clk 0:02:57.2]} 2. Bg5 {[%clk 0:02:59.8]}
2... Ne4 {[%clk 0:02:56]} 3. Bh4 {[%clk 0:02:55.9]} 3... d5 {[%clk 0:02:53.8]}
4. Nd2 {[%clk 0:02:46.4]} 4... Bf5 {[%clk 0:02:51.2]} 5. e3 {[%clk 0:02:42.5]}
5... c6 {[%clk 0:02:49.7]} 6. c3 {[%clk 0:02:37.8]} 6... Qb6 {[%clk 0:02:48.3]}
7. Qb3 {[%clk 0:02:28.7]} 7... Nxd2 {[%clk 0:02:45.4]} 8. Qxb6 {[%clk
0:02:26.9]} 8... axb6 {[%clk 0:02:43.4]} 9. Kxd2 {[%clk 0:02:27.5]} 9... e6
{[%clk 0:02:42.4]} 10. a3 {[%clk 0:02:26.5]} 10... Nd7 {[%clk 0:02:38.9]} 11. f3
{[%clk 0:02:20.6]} 11... b5 {[%clk 0:02:38.4]} 12. g4 {[%clk 0:02:20.5]} 12...
Bg6 {[%clk 0:02:37.6]} 13. Ne2 {[%clk 0:02:17.6]} 13... e5 {[%clk 0:02:32.4]}
14. Bg3 {[%clk 0:02:09.3]} 14... f6 {[%clk 0:02:32.1]} 15. h4 {[%clk 0:02:03.4]}
15... h5 {[%clk 0:02:31.7]} 16. g5 {[%clk 0:02:02.4]} 16... Bd6 {[%clk
0:02:29.6]} 17. Nc1 {[%clk 0:01:49.3]} 17... Nb6 {[%clk 0:02:25.2]} 18. Bd3
{[%clk 0:01:34.8]} 18... Bxd3 {[%clk 0:02:23.2]} 19. Nxd3 {[%clk 0:01:35.7]}
19... Nc4+ {[%clk 0:02:19.4]} 20. Kc1 {[%clk 0:01:23.9]} 20... e4 {[%clk
0:02:11.3]} 21. Bxd6 {[%clk 0:01:22.2]} 21... Nxd6 {[%clk 0:01:47.6]} 22. fxe4
{[%clk 0:01:21.9]} 22... Nxe4 {[%clk 0:01:45.7]} 23. g6 {[%clk 0:01:10.7]} 23...
Kd7 {[%clk 0:01:42.3]} 24. Kc2 {[%clk 0:01:09.4]} 24... Nd6 {[%clk 0:01:32.5]}
25. Nc5+ {[%clk 0:00:59.7]} 25... Ke7 {[%clk 0:01:29.9]} 26. Rae1 {[%clk
0:00:59.5]} 26... b6 {[%clk 0:01:29.8]} 27. Nd3 {[%clk 0:00:53.9]} 27... Rae8
{[%clk 0:01:29.2]} 28. Nf4 {[%clk 0:00:51.2]} 28... Kd7 {[%clk 0:01:28.8]} 29.
b3 {[%clk 0:00:45.8]} 29... Re4 {[%clk 0:01:26]} 30. Kd3 {[%clk 0:00:36.4]}
30... Nf5 {[%clk 0:01:23.9]} 31. Rh3 {[%clk 0:00:31.5]} 31... Kd6 {[%clk
0:01:20.1]} 32. c4 {[%clk 0:00:30.2]} 32... bxc4+ {[%clk 0:01:19.2]} 33. bxc4
{[%clk 0:00:30.3]} 33... Ra8 {[%clk 0:01:19.8]} 34. Ra1 {[%clk 0:00:28.6]} 34...
Ra4 {[%clk 0:01:08.3]} 35. cxd5 {[%clk 0:00:28.3]} 35... cxd5 {[%clk 0:01:08.9]}
36. Nxh5 {[%clk 0:00:28.4]} 36... b5 {[%clk 0:00:58.6]} 37. Nf4 {[%clk
0:00:17.6]} 37... b4 {[%clk 0:00:53.5]} 38. h5 {[%clk 0:00:16.6]} 38... bxa3
{[%clk 0:00:53.3]} 39. Ra2 {[%clk 0:00:13.7]} 39... Ra8 {[%clk 0:00:47.8]} 40.
Ng2 {[%clk 0:00:09.7]} 40... Nh6 {[%clk 0:00:43]} 41. Nf4 {[%clk 0:00:09.5]}
41... Re7 {[%clk 0:00:41]} 42. Rh1 {[%clk 0:00:07.4]} 42... Rb7 {[%clk
0:00:40.2]} 43. Rc1 {[%clk 0:00:07.1]} 43... Rb2 {[%clk 0:00:38.8]} 44. Rc2
{[%clk 0:00:06.7]} 44... Rxa2 {[%clk 0:00:37.7]} 45. Rxa2 {[%clk 0:00:06.6]}
45... Nf5 {[%clk 0:00:38.2]} 46. Ne2 {[%clk 0:00:06.9]} 46... Ke6 {[%clk
0:00:29.1]} 47. Nf4+ {[%clk 0:00:07]} 47... Kd6 {[%clk 0:00:28.4]} 48. e4 {[%clk
0:00:07.7]} 48... dxe4+ {[%clk 0:00:26.6]} 49. Kxe4 {[%clk 0:00:08.6]} 49... Nh6
{[%clk 0:00:25.9]} 50. d5 {[%clk 0:00:08.7]} 50... Ra4+ {[%clk 0:00:24.7]} 51.
Kf3 {[%clk 0:00:09.1]} 51... Ke5 {[%clk 0:00:24.2]} 52. Ne6 {[%clk 0:00:08.8]}
52... Nf5 {[%clk 0:00:22.1]} 53. Re2+ {[%clk 0:00:07.2]} 53... Kxd5 {[%clk
0:00:21.7]} 54. Nxg7 {[%clk 0:00:07.4]} 54... Nxg7 {[%clk 0:00:19.8]} 55. h6
{[%clk 0:00:08]} 55... Nf5 {[%clk 0:00:19.8]} 56. g7 {[%clk 0:00:07.2]} 56...
Nxh6 {[%clk 0:00:19.8]} 57. Rd2+ {[%clk 0:00:06.7]} 57... Ke6 {[%clk 0:00:17.8]}
58. Rh2 {[%clk 0:00:06.5]} 58... Ng8 {[%clk 0:00:17.1]} 59. Rh8 {[%clk
0:00:05.6]} 59... Kf7 {[%clk 0:00:17.5]} 60. Rh3 {[%clk 0:00:05.4]} 60... a2
{[%clk 0:00:17.7]} 0-1